Cogmind - Beta 17 @@@ ROGUE MODE // 2026.07.17 @ 22:23:30 Player: Skysub Result: Destroyed by Piercing Trap Performance ------------- Evolutions (0) 0 Regions Visited (2) 400 Robots Destroyed (45) 225 Value Destroyed (964) 964 Prototype IDs (2) 40 Alien Tech Used (0) 0 Bonus (7865) 7865 TOTAL SCORE: 9494 Bonus ------- High Alert Combat Kills 115 Prayed to X0-1V1 5000 Major X0-1V1 Interference 2750 Cogmind --------- Core Integrity 0/130 Matter 215/700 Energy 1151/1180 System Corruption 6% Temperature Cool (0) Movement Rolling (135) Ox3 Location -10/Subcaves Parts ------- > --- POWER (2) -------- Heavy Ion Engine (fused) > --- PROPULSION (1) --- Armored Wheel (fused) > --- UTILITY (2) ------ Large Storage Unit X0-1V1's Piety Tracker > --- WEAPON (2) ------- Subdweller Laser Subdweller Beam Cannon > --- INVENTORY (15) --- Armored Wheel Armored Wheel Armored Wheel Subdweller Monowheel Subdweller Monowheel Structural Scanner Subdweller Optics Subdweller Optics Light Armor Plating Beam Rifle Light Assault Rifle Shotgun Shotgun Shotgun Rocket Launcher Peak State ------------ > --- POWER ------------ Heavy Ion Engine > --- PROPULSION ------- Armored Wheel Armored Wheel > --- UTILITY ---------- Large Storage Unit X0-1V1's Piety Tracker > --- WEAPON ----------- Shotgun Grenade Launcher > --- INVENTORY -------- Light Treads Compact Wheel Armored Wheel Armored Wheel Small Storage Unit Structural Scanner Light Armor Plating Medium Laser Light Assault Rifle Light Assault Rifle Light Assault Rifle Shotgun Shotgun Shotgun Rocket Launcher [Rating: 26] Favorites ----------- Power Heavy Ion Engine Engine Heavy Ion Engine Propulsion Compact Wheel Treads Light Treads Wheel Compact Wheel Utility X0-1V1's Piety Tracker Device X0-1V1's Piety Tracker Storage Large Storage Unit Protection Light Armor Plating Weapon Assault Rifle Energy Gun Subdweller Laser Energy Cannon Subdweller Beam Cannon Ballistic Gun Assault Rifle Launcher Grenade Launcher Build | -11 -10 -10 ------- Run | Yrd Mat Sub Slots Evolved . | . . . Power . | . . . Propulsion . | . . . Utility . | . . . Weapon . | . . . Parts Attached 24 | 6 14 4 Power 3 | 1 2 . Engine 3 | 1 2 . Core . | . . . Reactor . | . . . Propulsion 7 | 2 5 . Treads 1 | 1 . . Leg . | . . . Wheel 6 | 1 5 . Hover . | . . . Flight . | . . . Utility 5 | 1 4 . Device 2 | . 2 . Storage 2 | 1 1 . Processor . | . . . Hackware . | . . . Protection 1 | . 1 . Artifact . | . . . Weapon 9 | 2 3 4 Energy Gun 2 | . . 2 Energy Cannon 1 | . . 1 Ballistic Gun 4 | 2 2 . Ballistic Cannon . | . . . Launcher 2 | . 1 1 Special Weapon . | . . . Impact Weapon . | . . . Slashing Weapon . | . . . Piercing Weapon . | . . . Special Melee Weapon . | . . . Unidentified Prototypes 2 | . 2 . Parts Lost 2 | . 2 . Power . | . . . Propulsion . | . . . Utility 1 | . 1 . Weapon 1 | . 1 . Highest Loss Streak 2 | . 2 . To Critical Strikes . | . . . Average Backups 10 | 2 8 13 Power . | . . . Propulsion 3 | 1 2 4 Utility 1 | . . 2 Weapon 5 | . 4 6 Tool/Special . | . . . Unused Backups 16 | . 4 12 Power 1 | . 1 . Propulsion 4 | . 1 3 Utility 3 | . . 3 Weapon 8 | . 2 6 Tool/Special . | . . . Average Slot Usage (%) 91 | . 95 87 Engine 14 | . 14 14 Treads 4 | . 8 . Wheel 16 | . 18 14 Device 13 | . 10 16 Storage 14 | . 14 14 Energy Gun 4 | . . 10 Energy Cannon 2 | . . 5 Ballistic Gun 13 | . 17 8 Launcher 7 | . 9 3 Peak Build Rating 26 | 6 26 25 Average Rating 18 | 5 15 24 On Entrance 9 | . 6 23 Avg Prop Armor Cover (%) 11 | 3 12 . Naked Turns . | . . . Heaviest Build 41 | 13 38 41 Greatest Support 32 | 20 32 12 Greatest Overweight (x) 3 | . 3 3 Average Overweight (x) 1 | . . 2 Largest Inventory Capacity 15 | 8 15 15 Average Capacity 11 | 6 9 15 Most Carried 15 | 4 15 15 Average Carried 10 | 2 8 13 Final Capacity 15 | 8 15 15 Final Carried 15 | 4 13 15 Class Distribution -------------------- 100% | Mutant Dominant Class ---------------- Mutant | -10/Materials Mutant | -10/Subcaves Resources | -11 -10 -10 ----------- Run | Yrd Mat Sub Matter Collected 868 | 224 367 277 Remotely . | . . . Salvage Created 1027 | . 736 291 Parts 80 | . 61 19 Haulers Intercepted 2 | . 2 . Recyclers Shooed 1 | . 1 . Parts Field Recycled . | . . . Retrieved Matter . | . . . Parts Self-Destructed 8 | . . 8 Prevented . | . . . Parts Restored . | . . . Kills | -11 -10 -10 ------- Run | Yrd Mat Sub Combat Hostiles Destroyed 34 | . 25 9 Guns 11 | . 5 6 AOE 23 | . 20 3 Classes Destroyed 11 | . 9 2 Worker 1 | . 1 . Builder 2 | . 2 . Tunneler 1 | . 1 . Hauler 2 | . 2 . Recycler 1 | . 1 . Operator 1 | . 1 . Watcher 3 | . 3 . Swarmer 14 | . 11 3 Grunt 16 | . 14 2 Sentry 1 | . . 1 Subdweller 3 | . . 3 Best Kill Streak 6 | . 6 3 Combat Bots Only 5 | . 5 3 Max Kills in Single Turn 4 | . 4 2 Gunslinging . | . . . Exploded 3 | . 3 2 Melee . | . . . Uniques/NPCs Destroyed . | . . . Combat | -11 -10 -10 -------- Run | Yrd Mat Sub Hostile Shots Fired 118 | . 100 18 Missed 36 | . 29 7 Hits 82 | . 71 11 Projectile 82 | . 71 11 Damage Taken 1076 | . 809 267 Core 249 | . 152 97 Absorbed by Shields . | . . . Core Remaining (%) 100 | 100 . . Volleys Fired 76 | . 43 33 Largest 2 | . 2 2 Hottest 140 | . 53 140 Shots Fired 127 | . 81 46 Gun 85 | . 58 27 Cannon 17 | . . 17 Launcher 25 | . 23 2 Special . | . . . Kinetic 69 | . 58 11 Thermal 33 | . . 33 Explosive 25 | . 23 2 Electromagnetic . | . . . Robot Hit Streak 9 | . 8 9 Robot Miss Streak 4 | . 4 4 Penetration Max . | . . . Secondary Targets . | . . . Shots Hit Robots 62 | . 45 17 Core Hits 69 | . 55 14 Critical Kills 1 | . 1 . Critical Parts Destroyed . | . . . Critical Strikes 2 | . 1 1 Burn 1 | . . 1 Destroy 1 | . 1 . Melee Attacks . | . . . Impact . | . . . Slashing . | . . . Piercing . | . . . Sneak Attacks . | . . . Combat Hostiles . | . . . Follow-up Attacks . | . . . Damage Inflicted 2318 | 9 1895 414 Guns 642 | . 402 240 Cannons . | . . . Explosions 1667 | . 1493 174 Melee . | . . . Ramming 9 | 9 . . Kinetic 559 | . 402 157 Thermal 83 | . . 83 Explosive 1667 | . 1493 174 Electromagnetic . | . . . Impact . | . . . Slashing . | . . . Piercing . | . . . Highest Corruption 7 | . 7 6 Average Corruption 4 | . 1 6 Corruption Purged . | . . . Corruption Blocked . | . . . Effects 9 | . 1 8 Message Errors 2 | . 1 1 Matter Fused 2 | . . 2 Heat Flow Errors 2 | . . 2 Data Loss (minor) 1 | . . 1 Misfires 1 | . . 1 Alerts 1 | . . 1 Overload Shots . | . . . Overflow Damage 50 | . 40 10 Projectiles . | . . . Explosions 50 | . 40 10 Melee . | . . . Knockbacks . | . . . Impact . | . . . Kinetic . | . . . Secondary . | . . . Self-Inflicted Damage 44 | . 44 . Shots 3 | . 3 . Rammed 1 | 1 . . Targets Rammed 1 | 1 . . Kicked . | . . . Crushed . | . . . Highest Temperature 329 | . 329 245 Average Temperature 155 | . 165 97 Received Heat Transfer 288 | . 246 42 Effects 3 | . 3 . Interference 3 | . 3 . Siege Activations . | . . . Martial Activations . | . . . Shielding Activations . | . . . Robots Disrupted . | . . . Combat Hostiles . | . . . Robots Corrupted . | . . . Combat Hostiles . | . . . Parts Fried . | . . . Impact Corruptions . | . . . Robots Melted . | . . . Combat Hostiles . | . . . Parts Melted 1 | . . 1 Heat Transferred 284 | . . 284 Parts Sabotaged . | . . . Parts Stolen . | . . . Parts Stripped . | . . . Power Chain Reactions . | . . . Alert | -11 -10 -10 ------- Run | Yrd Mat Sub Maximum Alert Level 3 | . 3 . Low Security (%) 27 | 100 19 . Level 1 38 | . 42 . Level 2 26 | . 29 . Level 3 7 | . 8 . Level 4 . | . . . Level 5 . | . . . High Security . | . . . Max Security . | . . . Peak Influence 835 | . 835 . Initial . | . . . Average 297 | . 330 . Influence Increases 1311 | . 1181 130 Destroy 0b10 Robot/C 620 | . 500 120 Destroy 0b10 Robot/NC 55 | . 55 . Destroy Leader 80 | . 70 10 Successful Hack 24 | . 24 . Select Force Hacks 60 | . 60 . Disable Machine 15 | . 15 . Destroy Structure 123 | . 123 . Miscellaneous 334 | . 334 . Influence Decreases 1083 | . 378 705 Entered New Map 387 | . . 387 Time Decay 676 | . 358 318 Lost Part 20 | . 20 . Squads Dispatched 3 | . 3 . Investigation 2 | . 2 . Extermination . | . . . Reinforcement 1 | . 1 . Assault . | . . . Garrison . | . . . Intercept . | . . . Searches Triggered . | . . . Construction Impeded . | . . . Haulers Reinforced . | . . . Active Scanning Responses . | . . . Cargo Convoy Interrupts . | . . . Stealth | -11 -10 -10 --------- Run | Yrd Mat Sub Distress Signals 1 | . 1 . Communications Jammed . | . . . Distress Signals . | . . . Times Spotted 43 | . 36 7 Peak Tracking Total 6 | . 6 4 Tactical Retreats . | . . . Traps | -11 -10 -10 ------- Run | Yrd Mat Sub Traps Triggered 3 | . 1 2 Indirectly . | . . . Trap Hack Attempts . | . . . Triggered . | . . . Disarmed . | . . . Reprogrammed . | . . . Reused . | . . . Traps Extracted . | . . . Installed . | . . . Triggered . | . . . Machines | -11 -10 -10 ---------- Run | Yrd Mat Sub Machines Disabled 1 | . 1 . Max in Single Turn 1 | . 1 . Machines Repaired . | . . . Machines Dismantled . | . . . Machines Sabotaged . | . . . Overloaded Fab Kills . | . . . Hacking | -11 -10 -10 --------- Run | Yrd Mat Sub Machines Accessed 8 | . 8 . Terminals 6 | . 6 . Fabricators . | . . . Repair Stations . | . . . Recycling Units 2 | . 2 . Scanalyzers . | . . . Garrison Access . | . . . Total Hacks 14 | . 14 . Successful 13 | . 13 . Failed 1 | . 1 . Catastrophic . | . . . Database Lockouts . | . . . Manual 12 | . 12 . Terminals 10 | . 10 . Fabricators . | . . . Repair Stations . | . . . Recycling Units 4 | . 4 . Scanalyzers . | . . . Garrison Access . | . . . Terminal Hacks 3 | . 3 . Robot Analysis 1 | . 1 . Terminal Index 1 | . 1 . Locate Traps 1 | . 1 . Fabricator Hacks . | . . . Repair Station Hacks . | . . . Recycling Unit Hacks 2 | . 2 . Report Inventory 2 | . 2 . Scanalyzer . | . . . Garrison Access Hacks . | . . . Unauthorized Hacks 8 | . 8 . Terminals 6 | . 6 . Skim 6 | . 6 . Fabricators . | . . . Repair Stations . | . . . Recycling Units 2 | . 2 . Tunnel 2 | . 2 . Scanalyzers . | . . . Garrison Access . | . . . Data Cores Recovered . | . . . Used . | . . . Hacking Detections 3 | . 3 . Full Trace Events . | . . . Feedback Events . | . . . Feedback Blocked . | . . . Robot Schematics Acquired . | . . . Robots Built . | . . . Authchips . | . . . Time . | . . . Total Robot Build Rating . | . . . Part Schematics Acquired . | . . . Parts Built . | . . . Authchips . | . . . Time . | . . . Total Part Build Rating . | . . . Part Studies Acquired . | . . . Parts Repaired . | . . . Time . | . . . Parts Recycled . | . . . Recycled Matter . | . . . Retrieved Matter . | . . . Retrieved Components . | . . . Parts Scanalyzed . | . . . Part Schematics Acquired . | . . . Parts Damaged . | . . . Bothacking | -11 -10 -10 ------------ Run | Yrd Mat Sub Used RIF Installer . | . . . Robots Hacked . | . . . Non-combat . | . . . Combat . | . . . Robot Hacks Applied . | . . . Relay Couplers Released . | . . . Fabnet Peak Effective % . | . . . Robots Rewired . | . . . Allies Hacked . | . . . Hacks Repelled . | . . . Allies | -11 -10 -10 -------- Run | Yrd Mat Sub Total Allies . | . . . Largest Group . | . . . Highest-Rated Group . | . . . Highest-Rated Ally . | . . . Total Orders . | . . . Ally Attacks . | . . . Total Damage . | . . . Kills . | . . . Allies Corrupted . | . . . Allies Melted . | . . . X0-1V1 Amusement Gains 101 | . 11 90 Good Acts 13 | . 12 1 Bad Acts 24 | . 20 4 Intel | -11 -10 -10 ------- Run | Yrd Mat Sub Active Infowar (turns) 271 | . 148 123 Structural 271 | . 148 123 Robot Analysis Total 1 | . 1 . Derelict Logs Recovered . | . . . Drone Launches . | . . . Drone Recoveries . | . . . Exploration | -11 -10 -10 ------------- Run | Yrd Mat Sub Turns Passed 1760 | 103 948 709 Spaces Moved 1226 | 62 686 478 Core 7 | 7 . . Treads 56 | 51 5 . Legs . | . . . Wheels 1163 | 4 681 478 Hover . | . . . Flight . | . . . Fastest Speed 50 | 50 90 120 Average Speed 115 | 143 103 128 Slowest Speed 160 | 160 160 135 Overloaded Moves . | . . . Propulsion Burnouts . | . . . Robots Hopped . | . . . Potential Cave-ins . | . . . Cave-ins Triggered . | . . . Exploration Rate (%) 45 | 3 98 36 Regions Visited 2 Branch Regions 1 Pre-discovered Areas 2 | . 2 . Known Exits Taken 1 | . 1 . Unknown Exits Taken 1 | 1 . . Scrap Searched . | . . . Spaces Dug 6 | . . 6 Terrain Destroyed 148 | . 132 16 Melee . | . . . Projectile 7 | . . 7 AOE 141 | . 132 9 Terrain Rammed . | . . . Walls Destroyed . | . . . Machines Disabled . | . . . Actions | -11 -10 -10 --------- Run | Yrd Mat Sub Total 1446 | 72 846 528 Wait 74 | . 73 1 Move 1225 | 62 685 478 Hop . | . . . Pick Up 27 | 4 15 8 Fast Attach 7 | 6 1 . Attach 6 | . 4 2 Detach . | . . . Swap 18 | . 15 3 Drop 13 | . 10 3 Fire 76 | . 43 33 Melee . | . . . Ram . | . . . Kick . | . . . Crush . | . . . Escape Stasis . | . . . Rewire . | . . . Trap . | . . . Miscellaneous . | . . . Route ------- -11/Scrapyard -10/Materials (discovered 6 exits: *Mat x3 / [*Min x2] / *Sub) -10/Subcaves (discovered 2 exits: *Mat x2) History --------- Turn | Location | Event 7 | -11/Scrapyard | Discovered new exit (range 15) 104 | -11/Scrapyard | Entered Materials 313 | -10/Materials | Build established: Mutant 342 | -10/Materials | Discovered new exit (range 10) 412 | -10/Materials | Discovered new exit (range 16) 483 | -10/Materials | Prayed at D.C.S.S. Altar Unit 488 | -10/Materials | X0-1V1 added 0b10 threat records associated with you (minor) 549 | -10/Materials | Ranged accuracy permanently improved by X0-1V1 (+6%; -60 max core) 602 | -10/Materials | Discovered new exit (range 16) 634 | -10/Materials | Identified exit to Materials 710 | -10/Materials | Learned location of 1 exit from Recycling 734 | -10/Materials | Identified exit to Subcaves 742 | -10/Materials | X0-1V1 foreshadows a heat wave 748 | -10/Materials | Learned Storage security intel 761 | -10/Materials | Learned Storage trap positions 783 | -10/Materials | Learned location of 2 exits from Materials 854 | -10/Materials | Ambient heat levels rising (+10) 932 | -10/Materials | X0-1V1 activates XOMVISION 954 | -10/Materials | X0-1V1 announced a LAN party 959 | -10/Materials | X0-1V1 added 0b10 threat records associated with you (major) 965 | -10/Materials | X0-1V1 sent you into danger 975 | -10/Materials | X0-1V1 mutated your Propulsion slot to Utility slot 999 | -10/Materials | X0-1V1 sent hostile G-34 Mercenary (x5) 1015 | -10/Materials | Ambient heat levels rising (+10) 1046 | -10/Materials | Core integrity fell below 50% 1052 | -10/Materials | Entered Subcaves 1053 | -10/Subcaves | Identified exit to Materials 1061 | -10/Subcaves | Melee accuracy permanently improved by X0-1V1 (+6%; -60 max core) 1175 | -10/Subcaves | X0-1V1 mutated your Utility slot to Power slot 1222 | -10/Subcaves | X0-1V1 sent hostile S-10 Pest (x3) 1761 | -10/Subcaves | Destroyed by Piercing Trap Last Messages --------------- 01488_ Subatomizers dissect the Sub. Optics. 01523_ MB-X4Z(u) tweaks Twisted Machinery. 01554_ System corrupted: IFF burst signal emitted. 01596_ GPJVJM7EJP3YOKHEHQT>36NRHDM8C%Q67P6 01634_ L6-SEG(u) builds Twisted Machinery. 01670_ System corrupted: Component data lost. 01715_ System corrupted: Matter fused (-6). 01734_ System corrupted: FCS attempts to trigger Sub. Laser. 01734_ System corrupted: Sub. Laser misfires. 01751_ T4-AP5(O) collects matter. 01754_ Triggered Piercing Trap. 01754_ Spikes shoot up from the floor. 01754_ Critical hit (Impale). 01761_ Triggered Piercing Trap. 01761_ Spikes shoot up from the floor. 01761_ Critical hit (Impale). 01761_ X0-1V1 bursts into laughter! Map ----- +----------------------------------------------------+ | """"" ##"" #### ### #?????????? | | """"" "" #?# ##?## #?????????? | | """"" #?## ##?## ##????????? | | """"## ## ###?### ### #????###?? | | """###### ###### ## #???# ##? | | """#?### "##?# "" ##?## #? | | #??# "#?## # # "" ###?? #? | | # ## ## ##?# ##### """""" ##??? #? | | #?# ##??# #??### ""###"" #### #? | | #### #?## # ##?# ##????## ####" ## ## | | ???# ##### #?## "#???### ###" # | | ??# # ### ##??## ##" #? | | ??# # # #### "###" #? | | ??# ## #?## #####? | | ?# ?## #??# #????? | | ?# ??######## "# """#?## #????? | | ?# ?????????####### """"##?# ##????? | | # ????????????????#" " #??### #?????? | | ##????????????????#""#""#?##### ##????? | | # ??????????????????###"""## ### ###??? | | ?# ???????????????###???# %"" ### ##?? | | ?### ??????????#???## ##?# ##### #?? | | ???## ????? #### ## #?# ## #??## #?? | | ?????????? #?## ##???#### ##?? | | ?????????????? #### ##?????# #??? | | ?????????????????????# @ #??????## #??? | | ?????????????????????## ^#??????## ##??? | | ??????????????????????##### O #??????#####???? | | ??????????????????????????# #??????????????? | | ??????????????????????????## #####??????????????? | | ???????????????????????????####??????????????????? | | ?????????????????????????????????????????????????? | | ?????????????????????????????????????????????????? | | ?????????????????????????????????????????????????? | | ?????????????????????????????????????????????????? | | ?????????????????????????????????????????????????? | | ?????????????????????????????????????????????????? | | ?????????????????????????????????????????????????? | | ?????????????????????????????????????????????????? | | ?????????????????????????????????????????????????? | | ?????????????????????????????????????????????????? | | ?????????????????????????????????????????????????? | | ?????????????????????????????????????????????????? | | ?????????????????????????????????????????????????? | | ?????????????????????????????????????????????????? | | ?????????????????????????????????????????????????? | | ?????????????????????????????????????????????????? | | ?????????????????????????????????????????????????? | | ?????????????????????????????????????????????????? | | ?????????????????????????????????????????????????? | +----------------------------------------------------+ Best States ------------- Heat Dissipation 25 Energy Generation 14 Energy Capacity 1180 Matter Stores 300 Matter Capacity 700 Sight Range 18 Terrain Scan Density 10 Armor Coverage 150 Evasion (%) 42 Recoil Reduction 1 Item Schematics ----------------- None Robot Schematics ------------------ None Fabricated ------------ Nothing Repaired ---------- Nothing Studied --------- None Alien Tech Used ----------------- None Achievements -------------- None Challenges ------------ None Game ------ Seed DeflectorTrapRail Manual? 0 Play Time 00:18:03 Cumulative 334.6 hours Start 2026.07.17 @ 22:09:27 End 2026.07.17 @ 22:23:30 Sessions 1 Manual Loads 0 Difficulty Rogue Special Mode None Game No. 409 Rogue 409 Adventurer 0 Explorer 0 Win Type - Total 22 Types 14/0/3/1/1/0/1/1/0/1 Lore% 80 Gallery% 74 Achievement% 66 Wizard Run 0 Options --------- Layout 1 ASCII 0 Keyboard 1 Movement Arrows Keybinds 0 Fullscreen 2 Font 36/Smallcaps Map View 50x40 Zoom Use 0% Tactical HUD 1 Map Filters NONE Filters NONE Steam 1 RUN: 2eeb7a05-04f1-4b54-8b3f-20e3302adf81